Cogmind - Beta 17 @@@ ROGUE MODE // 2026.06.23 @ 12:30:30 Player: 3.14 Result: Destroyed by Lightning with EMDS Performance ------------- Evolutions (4) 2000 Regions Visited (11) 2200 Robots Destroyed (172) 860 Value Destroyed (6348) 6348 Prototype IDs (14) 280 Alien Tech Used (0) 0 Bonus (16564) 16564 TOTAL SCORE: 28252 Bonus ------- High Alert Combat Kills 160 Follower Combat Kills 654 Prayed to X0-1V1 5000 Major X0-1V1 Interference 9550 Entered DSFs 500 Network Hubs Disabled 200 Met R17 at Cetus 500 Cogmind --------- Core Integrity 0/900 Matter 290/300 Energy 299/300 System Corruption 12% Temperature Cool (6) Movement Core (50) Location -6/Hub_04(d) Parts ------- > --- POWER (2) -------- (None) > --- PROPULSION (4) --- (None) > --- UTILITY (5) ------ Advanced Targeting Computer > --- WEAPON (4) ------- Katana > --- INVENTORY (5) ---- Light Fission Core Quantum Reactor Advanced Heat Sink High-capacity Storage Unit Centrium Medium Armor Plating Peak State ------------ > --- POWER ------------ FC-Quantum Engine > --- PROPULSION ------- Treaded Centrium-Reflex Exoskeleton > --- UTILITY ---------- Armored Scrap Engine Advanced Heat Sink Centrium Medium Armor Plating X0-1V1's Piety Tracker > --- WEAPON ----------- Flak Ballistic Penetrator Construct/G Thermic Construct/C Hyp. Ballistic Construct/G Scimitar of Distortion > --- INVENTORY -------- Quantum Reactor Advanced Heat Sink EM Shield Advanced Force Field High-powered Tractor Beam [Rating: 92] Favorites ----------- Power Constructs Engine Constructs Power Core Light Nuclear Core Reactor Quantum Reactor Propulsion Light Treads Treads Light Treads Leg Flexi-carbon Leg Utility X0-1V1's Piety Tracker Device X0-1V1's Piety Tracker Storage Huge Storage Unit Processor Advanced Targeting Computer Protection Medium Armor Plating Weapon Heavy Assault Rifle Energy Gun Medium Laser Ballistic Gun Heavy Assault Rifle Ballistic Cannon Improved Light Cannon Launcher EMP Blaster Slashing Weapon Scimitar of Distortion Build | -11 -10 -9 -9 -9 -7 -7 -6 -6 -6 -6 -6 ------- Run | Yrd Mat Mat Sto Rec Fac DSF Fac Ext Cet Arc Hub Slots Evolved 8 | . . 2 . . 4 . 2 . . . . Power . | . . . . . . . . . . . . Propulsion 1 | . . 1 . . . . . . . . . Utility 4 | . . 1 . . 2 . 1 . . . . Weapon 3 | . . . . . 2 . 1 . . . . Parts Attached 81 | 6 11 22 4 6 2 5 11 5 3 1 5 Power 15 | 1 2 5 1 1 . 2 1 1 1 . . Engine 10 | 1 2 4 1 1 . . 1 . . . . Core 4 | . . 1 . . . 2 . 1 . . . Reactor 1 | . . . . . . . . . 1 . . Propulsion 12 | 2 2 5 1 2 . . . . . . . Treads 12 | 2 2 5 1 2 . . . . . . . Leg . | . . . . . . . . . . . . Wheel . | . . . . . . . . . . . . Hover . | . . . . . . . . . . . . Flight . | . . . . . . . . . . . . Utility 39 | 1 4 7 1 3 2 3 9 4 2 1 2 Device 22 | . 1 4 1 2 1 2 6 3 1 1 . Storage 3 | 1 1 . . . . . . . . . 1 Processor 1 | . . . . . . . . . . . 1 Hackware . | . . . . . . . . . . . . Protection 13 | . 2 3 . 1 1 1 3 1 1 . . Artifact . | . . . . . . . . . . . . Weapon 15 | 2 3 5 1 . . . 1 . . . 3 Energy Gun 2 | 1 . . . . . . . . . . 1 Energy Cannon . | . . . . . . . . . . . . Ballistic Gun 6 | 1 1 4 . . . . . . . . . Ballistic Cannon 1 | . . 1 . . . . . . . . . Launcher 4 | . 2 . 1 . . . . . . . 1 Special Weapon . | . . . . . . . . . . . . Impact Weapon . | . . . . . . . . . . . . Slashing Weapon 2 | . . . . . . . 1 . . . 1 Piercing Weapon . | . . . . . . . . . . . . Special Melee Weapon . | . . . . . . . . . . . . Unidentified Prototypes 6 | . 1 1 . 1 . . 2 . 1 . . Corrupted Parts 2 | . 1 . . . . . . . . . 1 System Corruption 11 | . 3 . . . . . . . . . 8 Parts Lost 23 | . 1 4 . 1 . 3 7 2 1 . 4 Power 5 | . 1 . . . . 1 2 1 . . . Propulsion 2 | . . 1 . . . . . . . . 1 Utility 7 | . . 3 . 1 . 1 2 . . . . Weapon 9 | . . . . . . 1 3 1 1 . 3 Highest Loss Streak 4 | . 1 2 . 1 . 2 4 1 1 . 2 To Critical Strikes 2 | . . . . . . . 2 . . . . Average Backups 12 | 2 7 19 24 18 4 2 4 4 5 5 5 Power . | . . . . . . . . . . 1 1 Propulsion 2 | 1 3 4 4 2 . . . . . . . Utility 5 | . . 7 12 9 3 1 4 4 4 3 3 Weapon 3 | . 2 6 8 6 1 . . . . . . Tool/Special . | . . . . . . . . . . . . Unused Backups 28 | . 3 5 . 15 . . 2 1 . . 2 Power 2 | . . . . 1 . . . . . . 1 Propulsion 5 | . 2 1 . 2 . . . . . . . Utility 10 | . . 1 . 5 . . 2 1 . . 1 Weapon 11 | . 1 3 . 7 . . . . . . . Tool/Special . | . . . . . . . . . . . . Average Slot Usage (%) 81 | . 99 99 100 85 49 55 59 61 63 66 57 Engine 9 | . 14 7 22 18 7 5 1 5 3 . 2 Core 2 | . . 4 . . . . 3 2 2 2 2 Treads 15 | . 28 24 22 23 7 3 . . . 6 5 Leg 1 | . . . . . . 3 5 5 . . . Device 19 | . 9 19 22 21 23 19 21 20 20 20 18 Storage 6 | . 14 11 11 7 . . . . . . 4 Protection 4 | . 3 9 . . 3 6 2 5 4 5 . Energy Gun 2 | . 6 . . 1 7 8 5 1 . . . Energy Cannon 1 | . . . . . . . 6 2 . . . Ballistic Gun 9 | . 17 17 11 4 . 2 . 2 6 13 9 Ballistic Cannon 4 | . . 4 10 7 . . 2 5 10 6 3 Slashing Weapon 2 | . . . . . . . 5 8 6 6 5 Peak Build Rating 92 | 6 22 31 29 46 49 64 83 90 89 92 90 Average Rating 46 | 4 17 28 28 32 48 50 76 78 76 90 76 On Entrance 47 | . 6 22 29 29 46 49 59 69 79 89 90 Avg Prop Armor Cover (%) . | . . . . . . . . . . . . Naked Turns . | . . . . . . . . . . . . Heaviest Build 106 | 11 90 104 102 106 18 29 58 74 54 51 92 Greatest Support 68 | 40 43 66 40 60 60 60 68 64 61 61 61 Greatest Overweight (x) 2 | . 2 2 2 2 . . 1 1 . . 1 Average Overweight (x) . | . . 1 2 . . . . . . . . Largest Inventory Capacity 25 | 8 25 25 25 25 5 5 5 5 5 5 20 Average Capacity 14 | 6 10 25 25 18 5 5 5 5 5 5 17 Most Carried 25 | 4 8 25 25 25 4 5 5 5 5 5 6 Average Carried 12 | 2 7 19 24 18 3 2 4 4 4 5 5 Final Capacity 25 | 8 25 25 25 5 5 5 5 5 5 5 5 Final Carried 25 | 4 8 25 25 5 3 5 5 5 5 5 5 Scrap Engine Consumption 189 | . . . . 25 . 39 26 64 15 3 17 Constructs Created 14 | . . . . 3 . 2 5 3 1 . . Constructs Modified 56 | . . . . 3 . 5 13 23 5 3 4 Class Distribution -------------------- 43% | Mutant 39% | Construct 10% | Commander-Mutant 4% | Commander-Construct 3% | Scavenger-Mutant Dominant Class ---------------- Mutant | -10/Materials Mutant | -9/Materials Mutant | -9/Storage Commander-Mutant | -9/Recycling Commander-Mutant | -7/Factory Construct | -7/DSF Construct | -6/Factory Construct | -6/Extension Construct | -6/Cetus Construct | -6/Archives Construct | -6/Hub_04(d) Resources | -11 -10 -9 -9 -9 -7 -7 -6 -6 -6 -6 -6 ----------- Run | Yrd Mat Mat Sto Rec Fac DSF Fac Ext Cet Arc Hub Matter Collected 4407 | 252 343 1513 194 199 . 197 828 286 301 128 166 Remotely 150 | . . . . . . . . . 150 . . Salvage Created 7531 | . 603 1816 514 439 . 629 1434 685 511 237 663 Parts 352 | . 33 97 27 27 . 30 44 32 20 9 33 Haulers Intercepted 7 | . 1 3 . . . 1 1 . . . 1 Recyclers Shooed 11 | . 3 1 . 5 . . 2 . . . . Parts Field Recycled . | . . . . . . . . . . . . Retrieved Matter . | . . . . . . . . . . . . Parts Self-Destructed . | . . . . . . . . . . . . Prevented . | . . . . . . . . . . . . Parts Restored . | . . . . . . . . . . . . Kills | -11 -10 -9 -9 -9 -7 -7 -6 -6 -6 -6 -6 ------- Run | Yrd Mat Mat Sto Rec Fac DSF Fac Ext Cet Arc Hub Combat Hostiles Destroyed 126 | . 13 34 12 5 . 12 15 11 10 4 10 Melee 8 | . . . . . . . 4 4 . . . Guns 54 | . 5 26 . 3 . 3 1 6 4 2 4 Cannons 26 | . . 3 4 2 . . 6 1 6 2 2 AOE 34 | . 8 5 8 . . 8 1 . . . 4 Classes Destroyed 18 | . 7 3 . 1 . 3 3 1 . . . Worker 9 | . . 2 . . . . 2 2 . . 3 Builder 4 | . 1 . . . . . . . . . 3 Hauler 7 | . 1 3 . . . 1 1 . . . 1 Recycler 14 | . 1 5 . 3 . . 3 1 . . 1 Mechanic 1 | . . . . . . . 1 . . . . Operator 4 | . 2 . . . . . . . . 1 1 Watcher 6 | . 2 1 1 . . . . . 2 . . Swarmer 21 | . 6 8 . . . 4 . 3 . . . Cutter 1 | . . . . . . 1 . . . . . Grunt 57 | . 7 17 8 2 . 5 7 2 . . 9 Brawler 1 | . . 1 . . . . . . . . . Sentry 23 | . . 8 4 3 . . 1 3 . 4 . Specialist 1 | . . . . . . 1 . . . . . Hunter 7 | . . . . . . . 3 1 2 . 1 Programmer 4 | . . . . . . . 4 . . . . Heavy 1 | . . . . . . 1 . . . . . Behemoth 1 | . . . . . . . . 1 . . . Cetus Guard 8 | . . . . . . . . . 8 . . Scrapper 1 | . . . . 1 . . . . . . . Savage 1 | . . . . . . . . 1 . . . Best Kill Streak 16 | . 7 5 5 2 . 4 5 4 4 2 16 Combat Bots Only 9 | . 5 5 5 1 . 4 4 4 4 2 9 Max Kills in Single Turn 6 | . 2 3 2 1 . 2 2 2 2 1 6 Gunslinging . | . . . . . . . . . . . . Exploded 4 | . 2 3 2 . . 2 1 . . . 4 Melee 1 | . . . . . . . 1 1 . . . Uniques/NPCs Destroyed . | . . . . . . . . . . . . Combat | -11 -10 -9 -9 -9 -7 -7 -6 -6 -6 -6 -6 -------- Run | Yrd Mat Mat Sto Rec Fac DSF Fac Ext Cet Arc Hub Hostile Shots Fired 1033 | . 25 151 20 5 . 99 233 203 84 28 185 Missed 290 | . 9 46 7 1 . 30 62 59 22 9 45 Hits 743 | . 16 105 13 4 . 69 171 144 62 19 140 Melee 4 | . . . . . . 4 . . . . . Projectile 739 | . 16 105 13 4 . 65 171 144 62 19 140 Critical Strikes 33 | . . 2 . . . 9 6 3 9 1 3 Part Disruptions 1 | . . . . . . . 1 . . . . Damage Taken 9493 | . 249 1129 129 96 . 1342 1735 1512 827 401 2073 Core 1291 | . 17 119 9 8 . 222 229 175 71 18 423 Absorbed by Shields 1409 | . . 87 48 13 . 205 611 422 23 . . Ignored by Resistances 2386 | . . 87 6 2 . 200 447 734 702 54 154 Regen/Repaired (Parts) 2741 | . . 13 . 5 . 416 766 971 403 134 33 Core Remaining (%) 84 | 100 100 . . 69 . 70 . . . . . Volleys Fired 363 | . 40 94 22 23 . 42 25 32 38 17 30 Largest 4 | . 2 2 2 2 . 2 4 3 3 3 3 Hottest 245 | . 70 56 56 56 . 98 245 167 119 132 137 Shots Fired 749 | . 65 186 32 37 . 61 76 69 100 51 72 Gun 456 | . 46 165 10 14 . 42 25 37 30 34 53 Cannon 236 | . . 14 12 23 . . 51 32 70 17 17 Launcher 57 | . 19 7 10 . . 19 . . . . 2 Special . | . . . . . . . . . . . . Kinetic 534 | . 33 179 22 37 . 42 24 52 62 34 49 Thermal 158 | . 13 . . . . . 52 17 38 17 21 Explosive 2 | . . . . . . . . . . . 2 Electromagnetic 55 | . 19 7 10 . . 19 . . . . . Robot Hit Streak 15 | . 10 12 8 7 . 15 10 7 9 14 14 Robot Miss Streak 8 | . 3 4 1 5 . 3 8 5 4 3 8 Penetration Max 1 | . . . . . . . . 1 1 1 1 Secondary Targets 5 | . 1 3 . . . 1 . . . . . Max Gunslinging Chain 1 | . 1 1 . . . 1 . . . . . Shots Hit Robots 546 | . 32 124 18 19 . 38 83 67 78 38 49 Core Hits 382 | . 34 62 13 10 . 31 40 39 55 30 68 Critical Kills 14 | . . . . . . . 3 3 5 1 2 Critical Parts Destroyed 26 | . . . . . . 1 2 2 10 4 7 Critical Strikes 46 | . . 1 1 1 . 1 6 5 15 7 9 Burn 1 | . . . . . . . 1 . . . . Meltdown 2 | . . . . . . . 2 . . . . Destroy 40 | . . . . . . 1 3 5 15 7 9 Blast 3 | . . 1 1 1 . . . . . . . Melee Attacks 77 | . . . . . . . 44 33 . . . Impact . | . . . . . . . . . . . . Slashing 77 | . . . . . . . 44 33 . . . Piercing . | . . . . . . . . . . . . Sneak Attacks 6 | . . . . . . . 3 3 . . . Combat Hostiles . | . . . . . . . . . . . . Follow-up Attacks . | . . . . . . . . . . . . Damage Inflicted 15535 | . 940 2386 733 530 . 1691 2565 1943 1871 932 1944 Guns 5590 | . 313 1733 54 122 . 490 400 500 500 538 940 Cannons 4187 | . . 266 219 356 . . 746 518 1371 384 327 Explosions 3500 | . 618 338 460 . . 1201 141 102 . . 640 Melee 2084 | . . . . . . . 1268 816 . . . Ramming 174 | . 9 49 . 52 . . 10 7 . 10 37 Kinetic 6922 | . 222 1999 273 478 . 490 289 670 1090 538 873 Thermal 3490 | . 166 16 115 . . 218 966 450 781 384 394 Explosive 672 | . . . . . . . 32 . . . 640 Electromagnetic 2193 | . 543 322 345 . . 983 . . . . . Impact . | . . . . . . . . . . . . Slashing 2084 | . . . . . . . 1268 816 . . . Piercing . | . . . . . . . . . . . . Highest Corruption 12 | . 5 . . . . 3 4 4 4 4 12 Average Corruption 3 | . 4 . . . . 1 2 3 4 4 4 Corruption Purged . | . . . . . . . . . . . . Corruption Blocked . | . . . . . . . . . . . . Effects 56 | . 11 . . . . . 5 21 8 2 9 Message Errors 11 | . 3 . . . . . . 4 1 . 3 Matter Fused 11 | . . . . . . . 1 5 3 . 2 Heat Flow Errors 7 | . 1 . . . . . 2 1 1 1 1 Energy Discharges 6 | . 4 . . . . . . . 1 . 1 Parts Fused 1 | . . . . . . . . 1 . . . Data Loss (minor) 10 | . . . . . . . 2 4 2 . 2 Data Loss (major) 5 | . 2 . . . . . . 3 . . . Misfires 1 | . 1 . . . . . . . . . . Alerts 4 | . . . . . . . . 3 . 1 . Overload Shots . | . . . . . . . . . . . . Overflow Damage 169 | . 20 10 13 5 . 27 85 9 . . . Projectiles 55 | . . . 13 . . . 42 . . . . Explosions 62 | . 20 10 . . . 27 . 5 . . . Melee 52 | . . . . 5 . . 43 4 . . . Knockbacks 19 | . . 1 . 1 . . 12 2 3 . . Impact . | . . . . . . . . . . . . Kinetic 19 | . . 1 . 1 . . 12 2 3 . . Secondary . | . . . . . . . . . . . . Self-Inflicted Damage 359 | . 89 18 . . . 104 84 . . . 64 Shots 13 | . 3 1 . . . 5 2 . . . 2 Rammed 21 | . 2 9 1 4 . . . . . . 5 Targets Rammed 25 | . 2 9 1 4 . . 2 1 . 1 5 Kicked 3 | . . . . . . . 2 1 . . . Crushed 1 | . . . . . . . . . . 1 . Highest Temperature 422 | . 252 21 12 20 . 24 422 347 259 330 296 Average Temperature 76 | . 61 5 6 8 . 10 90 143 89 66 134 Received Heat Transfer 2170 | . 51 492 56 14 . 125 500 275 9 54 594 Effects 4 | . . . . . . . 1 2 1 . . Shutdowns 3 | . . . . . . . 1 2 . . . Energy Bleed 1 | . . . . . . . . . 1 . . Siege Activations . | . . . . . . . . . . . . Martial Activations . | . . . . . . . . . . . . Shielding Activations . | . . . . . . . . . . . . Robots Disrupted . | . . . . . . . . . . . . Combat Hostiles . | . . . . . . . . . . . . Robots Corrupted 1 | . . . . . . 1 . . . . . Combat Hostiles 1 | . . . . . . 1 . . . . . Parts Fried 15 | . 5 1 . . . 8 . . . . 1 Impact Corruptions 1 | . . . . 1 . . . . . . . Robots Melted 2 | . . . . . . . 2 . . . . Combat Hostiles 1 | . . . . . . . 1 . . . . Parts Melted 7 | . . . . 1 . . 5 . 1 . . Heat Transferred 4005 | . 409 50 250 . . 300 1050 548 650 325 423 Parts Sabotaged . | . . . . . . . . . . . . Parts Stolen . | . . . . . . . . . . . . Parts Stripped 10 | . . . . . . . 10 . . . . Power Chain Reactions 16 | . 5 1 2 . . 5 1 2 . . . Alert | -11 -10 -9 -9 -9 -7 -7 -6 -6 -6 -6 -6 ------- Run | Yrd Mat Mat Sto Rec Fac DSF Fac Ext Cet Arc Hub Maximum Alert Level 2 | . 2 2 2 1 1 2 1 . . . 1 Low Security (%) 57 | 100 63 33 . 84 . 14 18 100 100 100 67 Level 1 29 | . 29 28 64 15 100 79 81 . . . 32 Level 2 13 | . 7 38 35 . . 6 . . . . . Level 3 . | . . . . . . . . . . . . Level 4 . | . . . . . . . . . . . . Level 5 . | . . . . . . . . . . . . High Security . | . . . . . . . . . . . . Max Security . | . . . . . . . . . . . . Sterilizations 1 | . . . . . . 1 . . . . . Peak Influence 586 | . 413 586 509 278 200 491 339 160 125 99 341 Initial 257 | . . 152 241 181 200 140 257 148 67 30 25 Average 193 | . 148 307 394 83 200 274 253 81 88 69 119 Influence Increases 5219 | . 624 1284 472 331 200 421 526 545 228 104 484 Destroy 0b10 Robot/C 2840 | . 260 680 300 140 . 280 300 360 200 80 240 Destroy 0b10 Robot/NC 240 | . 35 55 5 20 . 10 35 20 10 5 45 Destroy Leader 512 | . 66 148 62 10 . 50 72 62 . . 42 Allied During Kill 141 | . . . 71 33 . 4 . 22 6 . 5 Successful Hack 91 | . 20 37 . 7 . . 27 . . . . Select Force Hacks 150 | . 30 . . 120 . . . . . . . Disable Machine 210 | . 30 30 30 . . . . . . 15 105 Destroy Structure 117 | . 19 5 4 1 . 17 17 6 12 4 32 Advance Influence 200 | . . . . . 200 . . . . . . Partial Spotted 15 | . . . . . . . . . . . 15 Lose Combat Pursuer 285 | . 30 45 . . . 60 75 75 . . . Miscellaneous 418 | . 134 284 . . . . . . . . . Influence Decreases 4923 | . 264 1072 577 798 . 130 714 728 273 105 262 Entered New Map 1421 | . . 208 331 286 . 60 234 155 53 45 49 Time Decay 2792 | . 264 674 206 402 . . 410 453 170 60 153 Lost Part 220 | . . 40 . 10 . 30 70 20 10 . 40 Lost Ally 340 | . . . 40 100 . 40 . 100 40 . 20 Purge Threat 150 | . . 150 . . . . . . . . . Squads Dispatched 28 | . 5 4 1 1 . 3 4 1 . . 9 Investigation 10 | . 3 2 1 1 . . 1 . . . 2 Extermination 2 | . . . . . . . 2 . . . . Reinforcement 13 | . 2 1 . . . 3 1 1 . . 5 Assault 1 | . . 1 . . . . . . . . . Garrison 2 | . . . . . . . . . . . 2 Intercept . | . . . . . . . . . . . . Searches Triggered . | . . . . . . . . . . . . Construction Impeded 3 | . . . . . . . 1 . . . 2 Haulers Reinforced 1 | . . . . . . . . . . . 1 Active Scanning Responses . | . . . . . . . . . . . . Cargo Convoy Interrupts . | . . . . . . . . . . . . Stealth | -11 -10 -9 -9 -9 -7 -7 -6 -6 -6 -6 -6 --------- Run | Yrd Mat Mat Sto Rec Fac DSF Fac Ext Cet Arc Hub Distress Signals 15 | . 4 4 . 1 . . . 1 2 . 3 Communications Jammed . | . . . . . . . . . . . . Distress Signals . | . . . . . . . . . . . . Times Spotted 220 | . 23 61 16 9 . 19 23 21 11 11 26 Peak Tracking Total 9 | . 8 7 5 2 . 4 4 3 5 2 9 Tactical Retreats 13 | . 2 3 . . . 4 2 2 . . . Traps | -11 -10 -9 -9 -9 -7 -7 -6 -6 -6 -6 -6 ------- Run | Yrd Mat Mat Sto Rec Fac DSF Fac Ext Cet Arc Hub Traps Triggered 12 | . 1 2 1 . . 3 . 5 . . . Indirectly 3 | . . . 1 . . 2 . . . . . Trap Hack Attempts . | . . . . . . . . . . . . Triggered . | . . . . . . . . . . . . Disarmed . | . . . . . . . . . . . . Reprogrammed . | . . . . . . . . . . . . Reused . | . . . . . . . . . . . . Traps Extracted . | . . . . . . . . . . . . Installed 1 | . . . . . . . 1 . . . . Triggered . | . . . . . . . . . . . . Most Traps Carried 1 | . . . . . . . 1 . . . . Machines | -11 -10 -9 -9 -9 -7 -7 -6 -6 -6 -6 -6 ---------- Run | Yrd Mat Mat Sto Rec Fac DSF Fac Ext Cet Arc Hub Machines Disabled 15 | . 2 2 2 . . . . . 1 1 7 Max in Single Turn 2 | . 1 1 1 . . . . . 1 1 2 Network Hub 1 | . . . . . . . . . . . 1 Energy Cycler 2 | . . . . . . . . 2 . . . Machines Repaired . | . . . . . . . . . . . . Machines Dismantled . | . . . . . . . . . . . . Machines Sabotaged . | . . . . . . . . . . . . Overloaded Fab Kills . | . . . . . . . . . . . . Hacking | -11 -10 -9 -9 -9 -7 -7 -6 -6 -6 -6 -6 --------- Run | Yrd Mat Mat Sto Rec Fac DSF Fac Ext Cet Arc Hub Machines Accessed 34 | . 6 11 1 8 1 . 2 4 . . 1 Terminals 22 | . 5 9 1 3 1 . 1 2 . . . Fabricators 1 | . . . . . . . 1 . . . . Repair Stations 2 | . . 1 . . . . . 1 . . . Recycling Units 6 | . 1 . . 4 . . . 1 . . . Scanalyzers 1 | . . 1 . . . . . . . . . Garrison Access 1 | . . . . . . . . . . . 1 Total Hacks 86 | . 20 33 2 14 1 . 3 11 . . 2 Successful 40 | . 11 15 1 7 1 . 2 3 . . . Failed 46 | . 9 18 1 7 . . 1 8 . . 2 Catastrophic 8 | . 2 3 . . . . . 1 . . 2 Database Lockouts . | . . . . . . . . . . . . Manual 93 | . 54 20 3 11 . . . 5 . . . Terminals 65 | . 19 29 2 7 1 . 1 6 . . . Fabricators 2 | . . . . . . . 2 . . . . Repair Stations 5 | . . 2 . . . . . 3 . . . Recycling Units 8 | . 1 . . 5 . . . 2 . . . Scanalyzers 2 | . . 2 . . . . . . . . . Garrison Access 2 | . . . . . . . . . . . 2 Terminal Hacks 12 | . 2 4 . 3 1 . 1 1 . . . Robot Analysis 2 | . 2 . . . . . . . . . . Open Door 1 | . . . . . . . 1 . . . . Open DSF 1 | . . . . . 1 . . . . . . Branch Access Points 1 | . . 1 . . . . . . . . . Unreport Threat 3 | . . 1 . 1 . . . 1 . . . Locate Traps 1 | . . 1 . . . . . . . . . Recall Investigation 1 | . . 1 . . . . . . . . . Release Object 2 | . . . . 2 . . . . . . . Fabricator Hacks 1 | . . . . . . . 1 . . . . Build 1 | . . . . . . . 1 . . . . Repair Station Hacks 4 | . . 2 . . . . . 2 . . . Scan Component 2 | . . 1 . . . . . 1 . . . Repair 2 | . . 1 . . . . . 1 . . . Recycling Unit Hacks . | . . . . . . . . . . . . Scanalyzer 2 | . . 2 . . . . . . . . . Retrieve Study 2 | . . 2 . . . . . . . . . Garrison Access Hacks . | . . . . . . . . . . . . Unauthorized Hacks 21 | . 9 7 1 4 . . . . . . . Terminals 16 | . 8 7 1 . . . . . . . . Botnet 4 | . 2 1 1 . . . . . . . . Operators 1 | . 1 . . . . . . . . . . Skim 11 | . 5 6 . . . . . . . . . Fabricators . | . . . . . . . . . . . . Repair Stations . | . . . . . . . . . . . . Recycling Units 5 | . 1 . . 4 . . . . . . . Tunnel 5 | . 1 . . 4 . . . . . . . Scanalyzers . | . . . . . . . . . . . . Garrison Access . | . . . . . . . . . . . . Data Cores Recovered . | . . . . . . . . . . . . Used . | . . . . . . . . . . . . Hacking Detections 26 | . 5 10 1 3 . . 2 4 . . 1 Full Trace Events 2 | . 1 . . . . . . . . . 1 Feedback Events . | . . . . . . . . . . . . Feedback Blocked . | . . . . . . . . . . . . Robot Schematics Acquired . | . . . . . . . . . . . . Robots Built . | . . . . . . . . . . . . Authchips . | . . . . . . . . . . . . Time . | . . . . . . . . . . . . Total Robot Build Rating . | . . . . . . . . . . . . Part Schematics Acquired . | . . . . . . . . . . . . Parts Built 2 | . . . . . . . 2 . . . . Authchips . | . . . . . . . . . . . . Time 42 | . . . . . . . 42 . . . . Total Part Build Rating 16 | . . . . . . . 16 . . . . Part Studies Acquired 2 | . . 2 . . . . . . . . . Parts Repaired 2 | . . 1 . . . . . 1 . . . Time 72 | . . 16 . . . . . 56 . . . Parts Recycled . | . . . . . . . . . . . . Recycled Matter . | . . . . . . . . . . . . Retrieved Matter . | . . . . . . . . . . . . Retrieved Components . | . . . . . . . . . . . . Parts Scanalyzed . | . . . . . . . . . . . . Part Schematics Acquired . | . . . . . . . . . . . . Parts Damaged . | . . . . . . . . . . . . Bothacking | -11 -10 -9 -9 -9 -7 -7 -6 -6 -6 -6 -6 ------------ Run | Yrd Mat Mat Sto Rec Fac DSF Fac Ext Cet Arc Hub Used RIF Installer . | . . . . . . . . . . . . Robots Hacked . | . . . . . . . . . . . . Non-combat . | . . . . . . . . . . . . Combat . | . . . . . . . . . . . . Robot Hacks Applied . | . . . . . . . . . . . . Relay Couplers Released . | . . . . . . . . . . . . Fabnet Peak Effective % . | . . . . . . . . . . . . Robots Rewired 15 | . . . . 5 . . . 10 . . . Allies Hacked . | . . . . . . . . . . . . Hacks Repelled . | . . . . . . . . . . . . Allies | -11 -10 -9 -9 -9 -7 -7 -6 -6 -6 -6 -6 -------- Run | Yrd Mat Mat Sto Rec Fac DSF Fac Ext Cet Arc Hub Total Allies 28 | . . . 10 5 . 1 . 11 . . 1 Largest Group 10 | . . . 10 8 1 1 . 5 2 . 1 Highest-Rated Group 142 | . . . 88 64 8 142 . 138 59 . 116 Highest-Rated Ally 142 | . . . 16 10 8 142 . 31 31 . 116 Initial Warlord ECA Mod 9 | . . . . . . . 9 9 9 9 9 Total Orders . | . . . . . . . . . . . . Ally Attacks 209 | . . . 42 73 . 10 . 53 20 . 11 Total Damage 2958 | . . . 364 623 . 239 . 818 351 . 563 Kills 24 | . . . 3 9 . 2 . 8 . . 2 Allies Corrupted . | . . . . . . . . . . . . Allies Melted . | . . . . . . . . . . . . X0-1V1 Amusement Gains 209 | . 6 10 . 60 5 10 30 18 . 20 50 Good Acts 45 | . 11 3 1 3 . 2 6 7 2 3 7 Bad Acts 56 | . 6 14 5 4 . 3 12 8 3 . 1 Intel | -11 -10 -9 -9 -9 -7 -7 -6 -6 -6 -6 -6 ------- Run | Yrd Mat Mat Sto Rec Fac DSF Fac Ext Cet Arc Hub Active Infowar (turns) 39 | . . 33 . . . . 6 . . . . IFF 6 | . . . . . . . 6 . . . . Seismic 33 | . . 33 . . . . . . . . . Robot Analysis Total 2 | . 2 . . . . . . . . . . Derelict Logs Recovered . | . . . . . . . . . . . . Drone Launches . | . . . . . . . . . . . . Drone Recoveries . | . . . . . . . . . . . . Exploration | -11 -10 -9 -9 -9 -7 -7 -6 -6 -6 -6 -6 ------------- Run | Yrd Mat Mat Sto Rec Fac DSF Fac Ext Cet Arc Hub Turns Passed 9452 | 98 1022 2631 435 1469 6 409 987 1563 344 138 350 Spaces Moved 3641 | 56 431 837 151 621 3 183 401 555 176 63 164 Core 53 | 3 . . . . . . . . . . 50 Treads 2452 | 53 431 837 151 621 3 56 50 57 16 63 114 Legs 957 | . . . . . . 127 351 479 . . . Wheels 179 | . . . . . . . . 19 160 . . Hover . | . . . . . . . . . . . . Flight . | . . . . . . . . . . . . Fastest Speed 50 | 50 160 240 240 120 165 80 80 123 123 123 50 Average Speed 189 | 154 174 259 240 188 165 106 136 191 123 123 143 Slowest Speed 320 | 160 320 320 240 240 165 165 185 259 123 123 204 Overloaded Moves . | . . . . . . . . . . . . Propulsion Burnouts . | . . . . . . . . . . . . Robots Hopped . | . . . . . . . . . . . . Potential Cave-ins 7 | . . . . . . . . 7 . . . Cave-ins Triggered . | . . . . . . . . . . . . Exploration Rate (%) 55 | 3 81 74 29 79 . 96 15 74 57 67 30 Regions Visited 11 Branch Regions 6 Pre-discovered Areas 7 | . 1 2 . 4 . . . . . . . Known Exits Taken 4 | . 1 1 1 . 1 . . . . . . Unknown Exits Taken 6 | 1 . . . 1 . . 1 1 1 1 . Scrap Searched . | . . . . . . . . . . . . Spaces Dug 39 | . 10 . . . . 9 . 10 . . 10 Terrain Destroyed 114 | . 17 4 4 1 . 19 13 16 12 4 24 Melee 10 | . . . . . . . . 10 . . . Projectile 24 | . . . . 1 . . 1 4 9 3 6 AOE 74 | . 17 4 4 . . 19 12 2 . . 16 Terrain Rammed . | . . . . . . . . . . . . Walls Destroyed . | . . . . . . . . . . . . Machines Disabled . | . . . . . . . . . . . . Actions | -11 -10 -9 -9 -9 -7 -7 -6 -6 -6 -6 -6 --------- Run | Yrd Mat Mat Sto Rec Fac DSF Fac Ext Cet Arc Hub Total 5431 | 65 638 1102 193 890 4 336 726 943 227 88 219 Wait 878 | . 125 78 4 160 . 95 206 198 4 2 6 Move 3630 | 55 430 836 150 620 2 182 400 554 175 62 164 Hop . | . . . . . . . . . . . . Pick Up 91 | 4 10 35 3 11 . 3 12 6 1 2 4 Fast Attach 40 | 6 3 9 . 4 . 4 8 1 2 . 3 Attach 26 | . 2 10 1 2 2 3 3 1 . . 2 Detach 8 | . . . . 1 . 3 1 . 2 . 1 Swap 47 | . 16 10 7 1 . 1 3 5 2 2 . Drop 95 | . 10 21 5 21 . 2 19 8 3 2 4 Fire 363 | . 40 94 22 23 . 42 25 32 38 17 30 Melee 76 | . . . . . . . 44 32 . . . Ram . | . . . . . . . . . . . . Kick 3 | . . . . . . . 2 1 . . . Crush 22 | . 2 9 1 4 . . . . . 1 5 Escape Stasis 27 | . . . . . . . 2 25 . . . Rewire 124 | . . . . 43 . 1 . 80 . . . Trap 1 | . . . . . . . 1 . . . . Miscellaneous . | . . . . . . . . . . . . Route ------- -11/Scrapyard -10/Materials (discovered 6 exits: *Mat x3 / [*Min x2] / [*Sub]) -9/Materials (discovered 6 exits: *Mat x3 / *Min x2 / *Sto) -9/Storage (discovered 2 exits: Mat / *Rec) -9/Recycling -7/Factory -7/DSF -6/Factory -6/Extension (discovered 3 exits: [*Fac x2] / [*Cet]) -6/Cetus (discovered 2 exits: [*Fac] / [*Arc]) -6/Archives (discovered 2 exits: [*Fac] / *Hub) -6/Hub_04(d) (discovered 1 exit: [*Fac]) History --------- Turn | Location | Event 17 | -11/Scrapyard | Discovered new exit (range 15) 99 | -11/Scrapyard | Entered Materials 299 | -10/Materials | Discovered new exit (range 16) 315 | -10/Materials | Discovered new exit (range 4) 317 | -10/Materials | Build established: Mutant 378 | -10/Materials | Prayed at D.C.S.S. Altar Unit 499 | -10/Materials | Discovered new exit (range 14) 501 | -10/Materials | Discovered new exit (range 11) 695 | -10/Materials | X0-1V1 enhanced Transport squad support 706 | -10/Materials | Energy capacity permanently improved by X0-1V1 (+200) 717 | -10/Materials | X0-1V1 activates XOMVISION 722 | -10/Materials | Identified exit to Materials 722 | -10/Materials | X0-1V1 revealed exit location to -9/Materials 727 | -10/Materials | Core integrity permanently improved by X0-1V1 (+300) 746 | -10/Materials | X0-1V1 added 0b10 threat records associated with you (minor) 799 | -10/Materials | Derelicts attacked the area 818 | -10/Materials | X0-1V1 revealed exit location to -9/Materials 850 | -10/Materials | KI resistance permanently improved by X0-1V1 (+15%) 1076 | -10/Materials | X0-1V1 foreshadows a heat wave 1121 | -10/Materials | Entered another Materials area 1121 | -9/Materials | Evolved 2 slots: Propulsion x1, Utility x1 1283 | -9/Materials | Discovered new exit (range 10) 1621 | -9/Materials | Discovered new exit (range 12) 1744 | -9/Materials | X0-1V1 mutated your Propulsion slot to Utility slot 1915 | -9/Materials | X0-1V1 sent you into danger 2005 | -9/Materials | Build established: Scavenger-Mutant 2139 | -9/Materials | X0-1V1 enhanced Transport squad support 2236 | -9/Materials | Discovered new exit (range 5) 2317 | -9/Materials | Build established: Mutant 2851 | -9/Materials | X0-1V1 added 0b10 threat records associated with you (major) 3011 | -9/Materials | X0-1V1 sent hostile G-34 Mercenary (x5) 3169 | -9/Materials | Identified exit to Mines 3169 | -9/Materials | Identified exit to Storage 3390 | -9/Materials | Learned location of 1 exit from Storage 3449 | -9/Materials | Repaired Shield Generator 3484 | -9/Materials | X0-1V1 mutated your Utility slot to Power slot 3485 | -9/Materials | Learned Storage trap positions 3516 | -9/Materials | Identified exit to Materials 3539 | -9/Materials | Learned location of Zion (-7) 3615 | -9/Materials | Loaded intel: 2 repair station locations 3666 | -9/Materials | Learned Materials emergency access door positions 3752 | -9/Materials | Entered Storage 3753 | -9/Storage | Identified exit to Recycling 3755 | -9/Storage | Loaded intel: 10 trap records 3774 | -9/Storage | X0-1V1 sent hostile G-34 Mercenary (x5) 3818 | -9/Storage | X0-1V1 sent you into danger 3983 | -9/Storage | Assisted by bots powering up and referring to "LRC-V3" 4108 | -9/Storage | Used back door to open Recycling access 4187 | -9/Storage | Entered Recycling 4187 | -9/Recycling | Accompanied by 8 allies 4287 | -9/Recycling | Build established: Commander-Mutant 4489 | -9/Recycling | Lost 4 allies 4730 | -9/Recycling | X0-1V1 mutated your Weapon slot to Propulsion slot 4752 | -9/Recycling | Discovered new exit (range 15) 4960 | -9/Recycling | Identified exit to Scraptown 4960 | -9/Recycling | X0-1V1 revealed exit location to -9/Scraptown 5139 | -9/Recycling | Scanned before Scraplab entrance 5167 | -9/Recycling | Entered Scraplab 5182 | -9/Recycling | Angered Scraplab inhabitants 5183 | -9/Recycling | Found Prototype Device 5183 | -9/Recycling | Identified Scrap Engine 5226 | -9/Recycling | Lost 5 allies 5500 | -9/Recycling | X0-1V1 activates XOMVISION 5644 | -9/Recycling | Build established: Construct 5656 | -9/Recycling | Entered Factory 5656 | -7/Factory | Accompanied by 1 ally 5656 | -7/Factory | Evolved 4 slots: Utility x2, Weapon x2 5660 | -7/Factory | Identified exit to DSF 5662 | -7/Factory | Entered DSF 5662 | -7/DSF | Accompanied by 1 ally 5691 | -7/DSF | Additional patrols routed to DSF 5899 | -7/DSF | X0-1V1 sent allied H-71 Marshal (x1) 5932 | -7/DSF | X0-1V1 mutated your Utility slot to Propulsion slot 6007 | -7/DSF | Discovered new exit (range 16) 6011 | -7/DSF | Sterilization system engaged 6031 | -7/DSF | Ambient heat levels rising (+10) 6046 | -7/DSF | Ambient heat levels rising (+10) 6061 | -7/DSF | Ambient heat levels rising (+10) 6071 | -7/DSF | Entered Factory 6071 | -6/Factory | Evolved 2 slots: Utility x1, Weapon x1 6081 | -6/Factory | X0-1V1 sent you to a vault 6099 | -6/Factory | Found Prototype Slashing Weapon 6099 | -6/Factory | Identified Scimitar of Distortion 6134 | -6/Factory | Found Heavy Servo Lattice 6268 | -6/Factory | X0-1V1 vaporized surrounding terrain (radius 17) 6377 | -6/Factory | X0-1V1 enhanced Transport squad support 6541 | -6/Factory | Fabricated Adv. Force Field (x2) 6670 | -6/Factory | X0-1V1 sent hostile P-60 Hacker (x2) 6788 | -6/Factory | X0-1V1 redirected Transport squads to designated parking area 6922 | -6/Factory | Lost 4 parts (2p2u) 6941 | -6/Factory | X0-1V1 sent you into danger 7053 | -6/Factory | Discovered new exit (range 6) 7058 | -6/Factory | Entered Extension 7064 | -6/Extension | X0-1V1 dreamt of freedom 7070 | -6/Extension | Rescued a captive Derelict 7078 | -6/Extension | Rescued a captive Derelict 7084 | -6/Extension | Rescued a captive Derelict 7096 | -6/Extension | Rescued a captive Derelict 7097 | -6/Extension | Rescued a captive Derelict 7166 | -6/Extension | X0-1V1 destroyed Energy Cycler 7174 | -6/Extension | X0-1V1 vaporized surrounding terrain (radius 16) 7221 | -6/Extension | X0-1V1 activates XOMVISION 7378 | -6/Extension | Repaired Neutrino Core 7459 | -6/Extension | Lost 4 allies 7600 | -6/Extension | X0-1V1 activates XOMVISION 7827 | -6/Extension | X0-1V1 sent hostile B-48 Gladiator (x1) 7853 | -6/Extension | Lost 3 allies 7946 | -6/Extension | Discovered new exit (range 11) 7946 | -6/Extension | Spotted B-75 Beast 7946 | -6/Extension | X0-1V1 sent you into danger 8026 | -6/Extension | Destroyed B-75 Beast 8066 | -6/Extension | Extracted ID and sensor layout for unrecognized location from A7's data core 8346 | -6/Extension | X0-1V1 vaporized surrounding terrain (radius 16) 8584 | -6/Extension | Discovered new exit (range 10) 8586 | -6/Extension | Discovered new exit (range 6) 8621 | -6/Extension | Entered Cetus 8621 | -6/Cetus | Accompanied by 2 allies 8637 | -6/Cetus | Spotted Cetus Guard 8638 | -6/Cetus | Spotted Cetus Guard 8641 | -6/Cetus | Spotted Cetus Guard 8641 | -6/Cetus | Spotted Cetus Guard 8643 | -6/Cetus | Destroyed Cetus Guard 8655 | -6/Cetus | Destroyed Cetus Guard 8663 | -6/Cetus | Destroyed Cetus Guard 8675 | -6/Cetus | Destroyed Cetus Guard 8732 | -6/Cetus | X0-1V1 sent hostile H-55 Commando (x2) 8786 | -6/Cetus | Discovered new exit (range 16) 8810 | -6/Cetus | Spotted Cetus Guard 8811 | -6/Cetus | Spotted Cetus Guard 8814 | -6/Cetus | Destroyed Cetus Guard 8815 | -6/Cetus | Core integrity fell below 50% 8833 | -6/Cetus | Destroyed Cetus Guard 8833 | -6/Cetus | Spotted Cetus Guard 8835 | -6/Cetus | Spotted Cetus Guard 8839 | -6/Cetus | Destroyed Cetus Guard 8864 | -6/Cetus | Destroyed Cetus Guard 8874 | -6/Cetus | Discovered new exit (range 16) 8881 | -6/Cetus | Met Revision 17 8965 | -6/Cetus | Entered Archives 9053 | -6/Archives | Discovered new exit (range 15) 9076 | -6/Archives | Discovered new exit (range 15) 9103 | -6/Archives | Entered Hub_04(d) 9277 | -6/Hub_04(d) | Garrison activated, responded to threat 9309 | -6/Hub_04(d) | X0-1V1 downgraded hostiles (x2) 9322 | -6/Hub_04(d) | Spotted B-75 Beast 9345 | -6/Hub_04(d) | X0-1V1 sent allied B-86 Titan (x1) 9354 | -6/Hub_04(d) | Allies destroyed B-75 Beast 9360 | -6/Hub_04(d) | Destroyed 9 combat bots 9396 | -6/Hub_04(d) | Garrison activated, responded to threat 9423 | -6/Hub_04(d) | Released all parts (7) 9426 | -6/Hub_04(d) | X0-1V1 whisked you away to safety 9440 | -6/Hub_04(d) | Core integrity fell below 20% 9440 | -6/Hub_04(d) | X0-1V1 destroyed Network Hub 9440 | -6/Hub_04(d) | Network Hub disabled 9448 | -6/Hub_04(d) | System corruption reached 10% 9449 | -6/Hub_04(d) | Discovered new exit (range 11) 9452 | -6/Hub_04(d) | Spotted Lightning 9453 | -6/Hub_04(d) | Destroyed by Lightning with EMDS Last Messages --------------- 09432_ Dropped Adv. Force Field. 09433_ Acquired Lgt. Fission Core. 09438_ System corrupted: Heat flow error (+118). 09440_ ALERT: Network intrusion management efficiency reduced by 20%. Dispatching hub defense squads. All non-combat units evacuate. 09440_ X0-1V1: "I bet that was expensive." 09440_ Hpw. Tractor Beam fried. 09440_ R-10 Processor destroyed. 09440_ Door malfunctions. 09440_ K-01 Serf destroyed. 09440_ O-16 Technician destroyed. 09440_ Door malfunctions. 09441_ Acquired 64 matter. 09447_ Acquired Corrupted Katana. 09447_ Integrated Corrupted Katana (+8). 09449_ EXIT=FOUND 09449_ W-25 Informer sends out distress signal. 09452_ Energy generation returns to normal. 09453_ EMDS Slug penetrates Wall. 09453_ X0-1V1 laughs nastily! Map ----- +----------------------------------------------------+ | ?????????????????????????????????????????????????? | | ?????????????????????????????????????????????????? | | ?????????????????????????????????????????????????? | | ?????????????????????????????????????????????????? | | ?????????????????????????????????????????????????? | | ?????????????????????????????????????????????????? | | ?????????????????????????????????????????????????? | | ?????????????????????????????????????????????????? | | ????????????????????????? ??????????????????????? | | ????????????????????????? ??????????????????????? | | ????????????????????????? ??????????????????????? | | ????????????????????????? #?????????????????????? | | ????????????????????????? +?????????????????????? | | ????????????????????????? #?????????????????????? | | ????????????????????????? #?????????????????????? | | ????????????????????????? #????????????????####?? | | ????????????????????????# #????????????????# = | | ????????????????????????# #????????????????? | | ????????????????????????# #????????????????# """ | | ???????????????????????## ##???????????????# | | ???????????????????????# ????????????????# "" | | ???????????????????????# ????????????????? ? "" | | ???????????????????????? w????????????????????? " | | ???????????????????????? h??????????????????????? | | ????????????????????????#Y#??????????????????????? | | ????????????????????????#@#??????????????????????? | | ????????????????????????# #??????????????????????? | | ????????????????????????# #??????????????????????? | | ?????????####???????????# #??????????????????????? | | ????????? ???????????#k#??????????????????????? | | ?????????# ???????????# #??????????????????????? | | ?????????# ##+##########+##?????????????????????? | | ?????????# ## #?????????????????????? | | ????????## ## """" "" #?????????????????????? | | ????????# # """" "" #?????????????????????? | | ????????+ # """" " ####### #??????????# | | ????????# # """" %* | | ????????# # =$= #######???????????????# | | ?????????# ####### ! ##?????????????????????? | | ?????????# # #??????????????????????? | | #####????# / #??????????????????????? | | ????# # #??????????????????????? | | !! ### # !! ##??????????????????????? | | !! # !!= #####???????????????????? | | ! / !%! / ???????????????? | | ###### ![ ! # #?????????????????? | | !! # #????# % # #?????????????????? | | ##### #? * +? +?????????????????? | | ##### #?#####?????????????????? | | # #???????????????????????? | +----------------------------------------------------+ Best States ------------- Heat Dissipation 128 Energy Generation 43 Energy Capacity 1930 Matter Stores 900 Matter Capacity 900 Sight Range 22 Terrain Scan Density 10 Armor Coverage 375 Resistance: KI 45 Resistance: TH 30 Core Shielding 20 Propulsion Shielding 66 Evasion (%) 57 Targeting Accuracy 8 Recoil Reduction 4 Item Schematics ----------------- None Robot Schematics ------------------ None Fabricated ------------ Adv. Force Field | x2 | -6/Factory | Preloaded Repaired ---------- Shield Generator | 56% | -9/Materials Neutrino Core | 41% | -6/Extension Studied --------- Lgt. Treads | -9/Materials | Hacked Imp. Treads | -9/Materials | Hacked Alien Tech Used ----------------- None Achievements -------------- Chaos Is Inevitable Construction Begets Destruction My Business Is Booming Well-fed Force Field Challenges ------------ None Game ------ Seed DeliveryRecyclingWand Manual? 0 Play Time 01:24:54 Cumulative 952.4 hours Start 2026.06.23 @ 10:43:07 End 2026.06.23 @ 12:30:30 Sessions 1 Manual Loads 0 Difficulty Rogue Special Mode None Game No. 1628 Rogue 1628 Adventurer 0 Explorer 0 Win Type - Total 93 Types 55/1/16/15/4/0/0/1/0/1 Lore% 92 Gallery% 79 Achievement% 65 Wizard Run 0 Options --------- Layout 0 ASCII 1 Keyboard 0 Movement Numpad Keybinds 1 Fullscreen 2 Font 18/SmallcapsGlow Map View 76x50 Zoom Use 0% Tactical HUD 1 Map Filters NONE Filters NONE Steam 1 RUN: 913eb070-3265-4bb5-8cf4-352af81dd294